[Event "10th Uppsala Young Champions 2023"]
[Site "Uppsala"]
[Date "2023.10.30"]
[Round "5.5"]
[White "Ljung, Harald"]
[Black "Oksendal, Martin"]
[Result "1-0"]
[ECO "A08"]
[WhiteElo "2159"]
[BlackElo "2123"]
[Annotator "RC"]
[PlyCount "153"]
[EventDate "2023.10.27"]
[EventType "swiss"]
[EventCountry "SWE"]
[SourceTitle "playchess.com"]
[Source "ChessBase"]
[SourceQuality "1"]
[TimeControl "5400+30"]

1. Nf3 {[%emt 0:00:06]} Nf6 {[%emt 0:00:23]} 2. g3 {[%emt 0:01:16]} g6 {[%emt 0:03:01]} 3. Bg2 {[%emt 0:00:20]} Bg7 {[%emt 0:00:07]} 4. O-O {[%emt 0:00:15]} d5 {[%emt 0:00:20]} 5. d3 {[%emt 0:01:04]} O-O {[%emt 0:00:09]} 6. Nbd2 {[%emt 0:00:40]} c5 {[%emt 0:09:24]} 7. Rb1 {[%emt 0:07:08]} Nc6 {[%emt 0:01:20]} 8. c4 {[%emt 0:00:52]} e5 {[%emt 0:08:41]} 9. cxd5 {[%emt 0:03:08]} Nxd5 {[%emt 0:00:30]} 10. Ne4 {[%emt 0:02:20]} b6 {[%emt 0:04:10]} 11. Bd2 {[%emt 0:04:07]} h6 {[%emt 0:12:30]} 12. a3 {[%emt 0:03:59]} Be6 {[%emt 0:06:55]} 13. Nc3 {[%emt 0:05:03]} Qd7 {[%emt 0:04:33]} 14. Nxd5 {[%emt 0:07:09]} Bxd5 {[%emt 0:00:12]} 15. Bc3 {[%emt 0:04:55]} Rad8 {[%emt 0:08:55]} 16. Nd2 {[%emt 0:03:18]} Bxg2 {[%emt 0:02:09]} 17. Kxg2 {[%emt 0:01:04]} Qd5+ {[%emt 0:00:25]} 18. Kg1 {[%emt 0:01:13]} f5 {[%emt 0:04:12]} 19. Qa4 {[%emt 0:05:51]} Rfe8 {[%emt 0:03:38]} 20. Rfd1 {[%emt 0:05:08]} Rd7 {[%emt 0:02:48]} 21. Qc4 {[%emt 0:07:14]} Nd4 {[%emt 0:05:16]} 22. Bxd4 {[%emt 0:05:51]} exd4 {[%emt 0:03:21]} 23. Kf1 {[%emt 0:00:52]} b5 {[%emt 0:02:55]} 24. Qxd5+ {[%emt 0:00:16]} Rxd5 {[%emt 0:00:05]} 25. a4 {[%emt 0:03:12]} a6 {[%emt 0:00:29]} 26. axb5 {[%emt 0:00:31]} axb5 {[%emt 0:00:00]} 27. Ra1 {[%emt 0:00:19]} Rde5 {[%emt 0:04:54]} 28. Re1 {[%emt 0:00:17]} Rc8 {[%emt 0:00:35]} 29. b3 {[%emt 0:01:54]} Kf7 {[%emt 0:02:56]} 30. Ra5 {[%emt 0:00:32]} Rb8 {[%emt 0:00:14]} 31. Rc1 {[%emt 0:04:05]} Bf8 {[%emt 0:01:40]} 32. Nb1 {[%emt 0:02:17]} Re6 {[%emt 0:02:26]} 33. Na3 {[%emt 0:05:48]} Reb6 {[%emt 0:00:23]} 34. Nc2 {[%emt 0:00:32]} Rd8 {[%emt 0:01:15]} 35. Ra7+ {[%emt 0:01:07]} Kg8 {[%emt 0:01:57]} 36. Ne1 {[%emt 0:00:18]} Re8 {[%emt 0:01:08]} 37. Nf3 {[%emt 0:01:31]} Rbe6 {[%emt 0:01:56]} 38. Rc2 {[%emt 0:00:14]} Rd8 {[%emt 0:00:20]} 39. Rca2 {[%emt 0:00:08]} Be7 {[%emt 0:00:46]} 40. Rb7 {[%emt 0:00:47]} b4 {[%emt 0:00:23]} 41. Nd2 {[%emt 0:00:39]} Kf7 {[%emt 0:02:15]} 42. Nc4 {[%emt 0:00:06]} Kf6 {[%emt 0:00:21]} 43. Rba7 {[%emt 0:01:28]} Rc8 {[%emt 0:00:56]} 44. R2a6 {[%emt 0:01:51]} Rcc6 {[%emt 0:00:42]} 45. Rxc6 {[%emt 0:00:05]} Rxc6 {[%emt 0:00:05]} 46. Kg2 {[%emt 0:00:18]} g5 {[%emt 0:00:45]} 47. f3 {[%emt 0:00:51]} Re6 {[%emt 0:00:19]} 48. Kf2 {[%emt 0:00:07]} f4 {[%emt 0:00:25]} 49. Nd2 {[%emt 0:00:16]} fxg3+ {[%emt 0:00:30]} 50. hxg3 {[%emt 0:00:30]} h5 {[%emt 0:00:57]} 51. Ne4+ {[%emt 0:00:00]} Kf5 {[%emt 0:00:24]} 52. Ra8 {[%emt 0:00:45]} h4 {[%emt 0:00:16]} 53. Rh8 {[%emt 0:00:52]} Ra6 {[%emt 0:00:49]} 54. Re8 {[%emt 0:01:08]} Ra7 {[%emt 0:00:18]} 55. Rc8 {[%emt 0:01:27]} Ra2 {[%emt 0:00:24]} 56. g4+ {[%emt 0:01:37]} Kg6 {[%emt 0:00:47]} 57. Rc7 {[%emt 0:00:44]} Bf8 {[%emt 0:00:26]} 58. Rc6+ {[%emt 0:01:06]} Kg7 {[%emt 0:00:17]} 59. Nxg5 {[%emt 0:00:21]} Be7 {[%emt 0:00:48]} 60. Ne6+ {[%emt 0:00:34]} Kf7 {[%emt 0:00:06]} 61. g5 {[%emt 0:00:25]} h3 {[%emt 0:00:17]} 62. g6+ {[%emt 0:00:52]} Kxg6 {[%emt 0:00:10]} 63. Nxc5+ {[%emt 0:01:56]} Kf5 {[%emt 0:00:57]} 64. Ne4 {[%emt 0:02:26]} Bh4+ {[%emt 0:00:24]} 65. Kg1 {[%emt 0:00:08]} Rxe2 {[%emt 0:00:43]} 66. Rh6 {[%emt 0:00:36]} h2+ {[%emt 0:00:29]} 67. Kh1 {[%emt 0:00:16]} Re3 {[%emt 0:01:05]} 68. Rxh4 {[%emt 0:02:46]} Rxd3 {[%emt 0:00:06]} 69. Ng3+ {[%emt 0:00:49]} Ke5 {[%emt 0:00:53]} 70. Ne2 {[%emt 0:01:06]} Rxf3 {[%emt 0:00:34]} 71. Nxd4 {[%emt 0:00:09]} Rd3 {[%emt 0:00:20]} 72. Nc6+ {[%emt 0:00:15]} Kd6 {[%emt 0:00:09]} 73. Rd4+ {[%emt 0:01:26]} Rxd4 {[%emt 0:00:24]} 74. Nxd4 {[%emt 0:00:01]} Kd5 {[%emt 0:00:17]} 75. Nc2 {[%emt 0:00:04]} Ke4 {[%emt 0:00:16]} 76. Nxb4 {[%emt 0:00:08]} Kd4 {[%emt 0:00:07]} 77. Na2 {[%emt 0:00:03]} 1-0

[Event "10th Uppsala Young Champions 2023"]
[Site "Uppsala"]
[Date "2023.10.30"]
[Round "5.6"]
[White "Steiners, Emils"]
[Black "Briem, Stephan"]
[Result "1/2-1/2"]
[ECO "E43"]
[WhiteElo "1914"]
[BlackElo "2144"]
[Annotator "RC"]
[PlyCount "133"]
[EventDate "2023.10.27"]
[EventType "swiss"]
[EventCountry "SWE"]
[SourceTitle "playchess.com"]
[Source "ChessBase"]
[SourceQuality "1"]
[TimeControl "5400+30"]

1. d4 {[%emt 0:00:03]} Nf6 {[%emt 0:05:03]} 2. c4 {[%emt 0:00:03]} e6 {[%emt 0:00:06]} 3. Nc3 {[%emt 0:00:05]} Bb4 {[%emt 0:00:07]} 4. e3 {[%emt 0:00:05]} b6 {[%emt 0:00:15]} 5. Bd3 {[%emt 0:00:09]} Bb7 {[%emt 0:00:06]} 6. f3 {[%emt 0:00:05]} c5 {[%emt 0:14:54]} 7. Nge2 {[%emt 0:04:29]} cxd4 {[%emt 0:04:15]} 8. exd4 {[%emt 0:00:36]} O-O {[%emt 0:10:37]} 9. O-O {[%emt 0:02:24]} d5 {[%emt 0:00:47]} 10. Bg5 {[%emt 0:17:42]} dxc4 {[%emt 0:04:03]} 11. Bxc4 {[%emt 0:01:49]} Be7 {[%emt 0:03:27]} 12. Qd2 {[%emt 0:15:37]} Nc6 {[%emt 0:02:49]} 13. Rad1 {[%emt 0:07:05]} Nb4 {[%emt 0:02:43]} 14. f4 {[%emt 0:09:25]} Qd7 {[%emt 0:15:03]} 15. Ng3 {[%emt 0:05:10]} g6 {[%emt 0:12:33]} 16. Bxf6 {[%emt 0:05:41]} Bxf6 {[%emt 0:00:36]} 17. Nce4 {[%emt 0:01:25]} Be7 {[%emt 0:09:18]} 18. Qxb4 {[%emt 0:04:28]} h5 {[%emt 0:00:49]} 19. d5 {[%emt 0:15:30]} h4 {[%emt 0:08:13]} 20. d6 {[%emt 0:01:58]} Bd8 {[%emt 0:00:18]} 21. Bb5 {[%emt 0:01:41]} Qc8 {[%emt 0:02:32]} 22. Rc1 {[%emt 0:01:06]} Qb8 {[%emt 0:00:41]} 23. Ne2 {[%emt 0:00:49]} h3 {[%emt 0:00:48]} 24. Bc6 {[%emt 0:01:52]} hxg2 {[%emt 0:00:19]} 25. Rfd1 {[%emt 0:00:48]} Bxc6 {[%emt 0:01:45]} 26. Rxc6 {[%emt 0:00:03]} Qb7 {[%emt 0:00:06]} 27. Rdc1 {[%emt 0:01:25]} b5 {[%emt 0:00:35]} 28. Qc3 {[%emt 0:01:11]} b4 {[%emt 0:00:58]} 29. Nf6+ {[%emt 0:01:16]} Bxf6 {[%emt 0:00:24]} 30. Qxf6 {[%emt 0:00:03]} Qb5 {[%emt 0:00:13]} 31. R1c4 {[%emt 0:01:13]} Qd5 {[%emt 0:01:37]} 32. Qd4 {[%emt 0:00:25]} Qf3 {[%emt 0:00:00]} 33. Qf2 {[%emt 0:00:16]} Qd3 {[%emt 0:00:00]} 34. Rc1 {[%emt 0:00:31]} Rad8 {[%emt 0:00:24]} 35. Qxg2 {[%emt 0:00:59]} Rxd6 {[%emt 0:00:05]} 36. Rxd6 {[%emt 0:00:22]} Qxd6 {[%emt 0:00:04]} 37. Rf1 {[%emt 0:00:39]} Rd8 {[%emt 0:01:05]} 38. Ng3 {[%emt 0:00:11]} a5 {[%emt 0:00:23]} 39. Kh1 {[%emt 0:00:45]} Qc5 {[%emt 0:00:38]} 40. Ne4 {[%emt 0:00:33]} Qe3 {[%emt 0:00:29]} 41. Qf3 {[%emt 0:00:27]} Qd4 {[%emt 0:00:39]} 42. Qe2 {[%emt 0:00:29]} Qd5 {[%emt 0:00:26]} 43. Qg2 {[%emt 0:00:22]} Qf5 {[%emt 0:00:25]} 44. Ng3 {[%emt 0:00:28]} Qd3 {[%emt 0:01:02]} 45. f5 {[%emt 0:00:38]} exf5 {[%emt 0:00:22]} 46. Nxf5 {[%emt 0:00:12]} Rd7 {[%emt 0:00:18]} 47. Nh6+ {[%emt 0:00:33]} Kg7 {[%emt 0:00:04]} 48. Ng4 {[%emt 0:00:05]} Re7 {[%emt 0:00:38]} 49. Qf3 {[%emt 0:01:18]} Qxf3+ {[%emt 0:00:00]} 50. Rxf3 {[%emt 0:00:00]} Re1+ {[%emt 0:01:28]} 51. Kg2 {[%emt 0:00:00]} Ra1 {[%emt 0:00:40]} 52. Ne5 {[%emt 0:01:19]} f6 {[%emt 0:00:24]} 53. Nc4 {[%emt 0:00:41]} Rxa2 {[%emt 0:00:05]} 54. Rf1 {[%emt 0:00:29]} a4 {[%emt 0:00:37]} 55. Kg3 {[%emt 0:00:26]} g5 {[%emt 0:00:52]} 56. h3 {[%emt 0:00:30]} Kg6 {[%emt 0:00:05]} 57. Re1 {[%emt 0:00:30]} a3 {[%emt 0:01:01]} 58. bxa3 {[%emt 0:00:23]} bxa3 {[%emt 0:00:06]} 59. Re3 {[%emt 0:00:14]} f5 {[%emt 0:00:38]} 60. Rxa3 {[%emt 0:00:09]} Rxa3+ {[%emt 0:00:11]} 61. Nxa3 {[%emt 0:00:01]} g4 {[%emt 0:00:09]} 62. h4 {[%emt 0:00:47]} Kh5 {[%emt 0:00:04]} 63. Nc4 {[%emt 0:00:20]} f4+ {[%emt 0:00:04]} 64. Kxf4 {[%emt 0:00:04]} Kxh4 {[%emt 0:00:03]} 65. Ne3 {[%emt 0:00:07]} g3 {[%emt 0:00:05]} 66. Nf5+ {[%emt 0:00:04]} Kh3 {[%emt 0:00:06]} 67. Nxg3 {[%emt 0:00:04]} 1/2-1/2

[Event "10th Uppsala Young Champions 2023"]
[Site "Uppsala"]
[Date "2023.10.30"]
[Round "5.8"]
[White "Seiger, Vidar"]
[Black "Muntean, Victor"]
[Result "1/2-1/2"]
[ECO "A05"]
[WhiteElo "1908"]
[BlackElo "2092"]
[Annotator "RC"]
[PlyCount "94"]
[EventDate "2023.10.27"]
[EventType "swiss"]
[EventCountry "SWE"]
[SourceTitle "playchess.com"]
[Source "ChessBase"]
[SourceQuality "1"]
[TimeControl "5400+30"]

1. Nf3 {[%emt 0:00:04]} Nf6 {[%emt 0:00:05]} 2. g3 {[%emt 0:00:09]} g6 {[%emt 0:00:05]} 3. b4 {[%emt 0:00:08]} a5 {[%emt 0:00:08]} 4. b5 {[%emt 0:01:41]} Bg7 {[%emt 0:00:48]} 5. Bb2 {[%emt 0:00:03]} O-O {[%emt 0:00:17]} 6. Bg2 {[%emt 0:00:07]} d5 {[%emt 0:00:27]} 7. O-O {[%emt 0:00:59]} c6 {[%emt 0:03:16]} 8. c4 {[%emt 0:00:23]} dxc4 {[%emt 0:08:12]} 9. a4 {[%emt 0:00:17]} cxb5 {[%emt 0:07:50]} 10. axb5 {[%emt 0:00:15]} Nbd7 {[%emt 0:00:42]} 11. Na3 {[%emt 0:02:13]} Nc5 {[%emt 0:08:56]} 12. Nxc4 {[%emt 0:03:18]} Be6 {[%emt 0:09:22]} 13. d3 {[%emt 0:04:00]} Bxc4 {[%emt 0:03:03]} 14. dxc4 {[%emt 0:00:06]} Qxd1 {[%emt 0:00:11]} 15. Rfxd1 {[%emt 0:00:36]} Nfd7 {[%emt 0:02:07]} 16. Bxg7 {[%emt 0:01:00]} Kxg7 {[%emt 0:00:14]} 17. Rd5 {[%emt 0:06:14]} Rfc8 {[%emt 0:03:27]} 18. Bh3 {[%emt 0:05:06]} Rc7 {[%emt 0:02:39]} 19. Bxd7 {[%emt 0:15:37]} Nxd7 {[%emt 0:00:08]} 20. Nd2 {[%emt 0:14:06]} b6 {[%emt 0:07:31]} 21. f3 {[%emt 0:05:57]} Nc5 {[%emt 0:01:00]} 22. Kf2 {[%emt 0:00:22]} Raa7 {[%emt 0:02:49]} 23. Ra3 {[%emt 0:01:02]} Rd7 {[%emt 0:00:18]} 24. e4 {[%emt 0:00:07]} e6 {[%emt 0:00:25]} 25. Rxd7 {[%emt 0:00:20]} Rxd7 {[%emt 0:00:05]} 26. Ke3 {[%emt 0:00:09]} g5 {[%emt 0:02:44]} 27. Rc3 {[%emt 0:08:52]} g4 {[%emt 0:04:42]} 28. fxg4 {[%emt 0:08:42]} Rxd2 {[%emt 0:03:47]} 29. Kxd2 {[%emt 0:00:10]} Nxe4+ {[%emt 0:00:02]} 30. Kc2 {[%emt 0:00:10]} Nxc3 {[%emt 0:00:02]} 31. Kxc3 {[%emt 0:00:09]} Kf6 {[%emt 0:00:10]} 32. c5 {[%emt 0:00:05]} Ke7 {[%emt 0:00:04]} 33. cxb6 {[%emt 0:00:08]} Kd7 {[%emt 0:00:06]} 34. Kb3 {[%emt 0:00:23]} e5 {[%emt 0:00:08]} 35. Ka4 {[%emt 0:00:04]} e4 {[%emt 0:00:04]} 36. Kxa5 {[%emt 0:00:05]} e3 {[%emt 0:00:06]} 37. Ka6 {[%emt 0:00:14]} e2 {[%emt 0:00:05]} 38. b7 {[%emt 0:00:05]} e1=Q {[%emt 0:00:08]} 39. b8=Q {[%emt 0:00:24]} Qa1+ {[%emt 0:00:23]} 40. Kb7 {[%emt 0:04:03]} Qh1+ {[%emt 0:00:07]} 41. Ka7 {[%emt 0:01:01]} Qa1+ {[%emt 0:00:07]} 42. Kb6 {[%emt 0:01:14]} Qd4+ {[%emt 0:00:45]} 43. Ka5 {[%emt 0:00:17]} Qc3+ {[%emt 0:00:06]} 44. Ka4 {[%emt 0:00:15]} Qc4+ {[%emt 0:00:07]} 45. Ka5 {[%emt 0:00:06]} Qc3+ {[%emt 0:00:04]} 46. Ka4 {[%emt 0:00:05]} Qc4+ {[%emt 0:00:06]} 47. Ka5 {[%emt 0:00:05]} Qc3+ {[%emt 0:00:04]} 1/2-1/2

[Event "10th Uppsala Young Champions 2023"]
[Site "Uppsala"]
[Date "2023.10.30"]
[Round "5.9"]
[White "Morell, Oscar"]
[Black "Nilsson, Oliver"]
[Result "0-1"]
[ECO "C55"]
[WhiteElo "1942"]
[BlackElo "1933"]
[Annotator "RC"]
[PlyCount "56"]
[EventDate "2023.10.27"]
[EventType "swiss"]
[EventCountry "SWE"]
[SourceTitle "playchess.com"]
[Source "ChessBase"]
[SourceQuality "1"]
[TimeControl "5400+30"]

1. e4 {[%emt 0:00:04]} e5 {[%emt 0:03:13]} 2. Nf3 {[%emt 0:00:14]} Nc6 {[%emt 0:00:25]} 3. Bc4 {[%emt 0:00:11]} Nf6 {[%emt 0:00:03]} 4. d3 {[%emt 0:00:08]} h6 {[%emt 0:00:05]} 5. c3 {[%emt 0:00:50]} d6 {[%emt 0:00:10]} 6. a4 {[%emt 0:03:53]} g6 {[%emt 0:01:07]} 7. Qb3 {[%emt 0:05:06]} Qe7 {[%emt 0:01:23]} 8. Nbd2 {[%emt 0:04:52]} Bg7 {[%emt 0:00:05]} 9. O-O {[%emt 0:01:07]} O-O {[%emt 0:00:06]} 10. a5 {[%emt 0:00:08]} Kh7 {[%emt 0:00:55]} 11. Re1 {[%emt 0:10:50]} Nd7 {[%emt 0:00:31]} 12. Nf1 {[%emt 0:08:03]} Nc5 {[%emt 0:00:17]} 13. Qd1 {[%emt 0:06:02]} Ne6 {[%emt 0:06:45]} 14. Ne3 {[%emt 0:02:21]} f5 {[%emt 0:01:40]} 15. exf5 {[%emt 0:09:36]} gxf5 {[%emt 0:00:59]} 16. d4 {[%emt 0:20:17]} Nf4 {[%emt 0:06:42]} 17. dxe5 {[%emt 0:13:32]} dxe5 {[%emt 0:03:34]} 18. Qb3 {[%emt 0:01:33]} e4 {[%emt 0:03:54]} 19. Nf1 {[%emt 0:06:45]} Nxg2 {[%emt 0:02:33]} 20. Ng5+ {[%emt 0:04:17]} hxg5 {[%emt 0:00:29]} 21. Kxg2 {[%emt 0:00:01]} Ne5 {[%emt 0:00:49]} 22. Ng3 {[%emt 0:00:31]} Bd7 {[%emt 0:06:37]} 23. Bb5 {[%emt 0:01:07]} c6 {[%emt 0:01:13]} 24. Bf1 {[%emt 0:00:24]} Be6 {[%emt 0:00:57]} 25. Qc2 {[%emt 0:00:29]} Rad8 {[%emt 0:01:36]} 26. b4 {[%emt 0:00:36]} Bd5 {[%emt 0:05:51]} 27. Be3 {[%emt 0:00:30]} Nd3 {[%emt 0:01:23]} 28. Red1 {[%emt 0:00:30]} f4 {[%emt 0:00:13]} 0-1

[Event "10th Uppsala Young Champions 2023"]
[Site "Uppsala"]
[Date "2023.10.30"]
[Round "5.10"]
[White "Mai, Alexander Oliver"]
[Black "Ostensson, Julia"]
[Result "1-0"]
[ECO "B41"]
[WhiteElo "2118"]
[BlackElo "1878"]
[Annotator "RC"]
[PlyCount "109"]
[EventDate "2023.10.27"]
[EventType "swiss"]
[EventCountry "SWE"]
[SourceTitle "playchess.com"]
[Source "ChessBase"]
[SourceQuality "1"]
[TimeControl "5400+30"]

1. e4 {[%emt 0:00:16]} c5 {[%emt 0:00:06]} 2. Nf3 {[%emt 0:00:06]} e6 {[%emt 0:00:10]} 3. d4 {[%emt 0:00:08]} cxd4 {[%emt 0:00:05]} 4. Nxd4 {[%emt 0:00:09]} a6 {[%emt 0:00:06]} 5. c4 {[%emt 0:00:34]} Nf6 {[%emt 0:00:05]} 6. Nc3 {[%emt 0:00:08]} Qc7 {[%emt 0:00:04]} 7. a3 {[%emt 0:01:12]} b6 {[%emt 0:00:04]} 8. f3 {[%emt 0:00:08]} Bb7 {[%emt 0:00:12]} 9. Be3 {[%emt 0:00:07]} Nc6 {[%emt 0:02:07]} 10. b4 {[%emt 0:03:09]} Ne5 {[%emt 0:18:31]} 11. Rc1 {[%emt 0:02:08]} d6 {[%emt 0:01:21]} 12. Be2 {[%emt 0:01:00]} Ned7 {[%emt 0:04:34]} 13. O-O {[%emt 0:01:00]} Be7 {[%emt 0:00:29]} 14. Qd2 {[%emt 0:04:03]} O-O {[%emt 0:00:20]} 15. Rc2 {[%emt 0:00:43]} Rac8 {[%emt 0:03:07]} 16. Rb1 {[%emt 0:01:18]} Rfd8 {[%emt 0:00:29]} 17. Bf1 {[%emt 0:02:01]} Bf8 {[%emt 0:11:59]} 18. Qf2 {[%emt 0:01:27]} Ba8 {[%emt 0:06:29]} 19. Rcc1 {[%emt 0:04:35]} Qa7 {[%emt 0:04:44]} 20. Qe2 {[%emt 0:12:50]} Bb7 {[%emt 0:01:36]} 21. a4 {[%emt 0:08:51]} d5 {[%emt 0:23:54]} 22. cxd5 {[%emt 0:01:24]} exd5 {[%emt 0:00:53]} 23. exd5 {[%emt 0:00:52]} Nxd5 {[%emt 0:03:16]} 24. Nxd5 {[%emt 0:00:24]} Rxc1 {[%emt 0:00:22]} 25. Rxc1 {[%emt 0:00:50]} Bxd5 {[%emt 0:00:08]} 26. Qxa6 {[%emt 0:01:46]} Qxa6 {[%emt 0:00:08]} 27. Bxa6 {[%emt 0:00:01]} Bxb4 {[%emt 0:00:45]} 28. Nc6 {[%emt 0:00:54]} Bxc6 {[%emt 0:03:24]} 29. Rxc6 {[%emt 0:00:03]} Rb8 {[%emt 0:13:02]} 30. Rc7 {[%emt 0:03:53]} Bc5 {[%emt 0:00:40]} 31. Bxc5 {[%emt 0:01:00]} Nxc5 {[%emt 0:00:06]} 32. Bb5 {[%emt 0:01:16]} g6 {[%emt 0:00:12]} 33. Ra7 {[%emt 0:01:05]} Kg7 {[%emt 0:00:42]} 34. Bc4 {[%emt 0:00:39]} Rb7 {[%emt 0:02:18]} 35. Ra8 {[%emt 0:00:13]} Rd7 {[%emt 0:00:59]} 36. Kf1 {[%emt 0:00:53]} Rd1+ {[%emt 0:00:29]} 37. Ke2 {[%emt 0:00:55]} Ra1 {[%emt 0:00:22]} 38. Ra7 {[%emt 0:01:43]} Rxa4 {[%emt 0:00:21]} 39. Rxf7+ {[%emt 0:00:04]} Kh6 {[%emt 0:00:09]} 40. Bd5 {[%emt 0:01:21]} Rd4 {[%emt 0:00:33]} 41. Bc6 {[%emt 0:00:20]} Rd6 {[%emt 0:00:28]} 42. Bb5 {[%emt 0:00:13]} Nb3 {[%emt 0:00:43]} 43. Kf2 {[%emt 0:01:16]} Rd2+ {[%emt 0:00:27]} 44. Kg3 {[%emt 0:00:16]} Nd4 {[%emt 0:00:22]} 45. Bd7 {[%emt 0:01:02]} Ne2+ {[%emt 0:01:01]} 46. Kg4 {[%emt 0:01:18]} Rd4+ {[%emt 0:00:23]} 47. Kh3 {[%emt 0:00:33]} Nf4+ {[%emt 0:00:32]} 48. Kg3 {[%emt 0:00:09]} Nh5+ {[%emt 0:00:31]} 49. Kf2 {[%emt 0:00:39]} Rd2+ {[%emt 0:00:02]} 50. Kf1 {[%emt 0:00:08]} Rb2 {[%emt 0:00:49]} 51. g4 {[%emt 0:00:45]} Rb1+ {[%emt 0:00:46]} 52. Kg2 {[%emt 0:01:47]} Rb2+ {[%emt 0:00:15]} 53. Kh3 {[%emt 0:00:22]} Ng7 {[%emt 0:00:35]} 54. f4 {[%emt 0:04:11]} Rb3+ {[%emt 0:00:15]} 55. Kh4 {[%emt 0:00:01]} 1-0

[Event "10th Uppsala Young Champions 2023"]
[Site "Uppsala"]
[Date "2023.10.30"]
[Round "5.11"]
[White "Valcu, Lavinia"]
[Black "Frank, Anton"]
[Result "1-0"]
[ECO "A45"]
[WhiteElo "1990"]
[BlackElo "1997"]
[Annotator "RC"]
[PlyCount "69"]
[EventDate "2023.10.27"]
[EventType "swiss"]
[EventCountry "SWE"]
[SourceTitle "playchess.com"]
[Source "ChessBase"]
[SourceQuality "1"]
[TimeControl "5400+30"]

1. d4 {[%emt 0:00:02]} Nf6 {[%emt 0:00:07]} 2. Bg5 {[%emt 0:00:08]} c5 {[%emt 0:00:05]} 3. d5 {[%emt 0:00:07]} Ne4 {[%emt 0:00:13]} 4. Bf4 {[%emt 0:00:06]} Qb6 {[%emt 0:00:15]} 5. Bc1 {[%emt 0:00:05]} c4 {[%emt 0:06:35]} 6. Nh3 {[%emt 0:17:02]} d6 {[%emt 0:05:58]} 7. f3 {[%emt 0:01:36]} Bxh3 {[%emt 0:06:26]} 8. fxe4 {[%emt 0:00:16]} Bg4 {[%emt 0:01:16]} 9. Na3 {[%emt 0:09:52]} Qc5 {[%emt 0:05:09]} 10. c3 {[%emt 0:03:51]} a6 {[%emt 0:02:25]} 11. Nc2 {[%emt 0:18:52]} e5 {[%emt 0:03:57]} 12. g3 {[%emt 0:07:09]} Be7 {[%emt 0:01:39]} 13. Bg2 {[%emt 0:02:26]} O-O {[%emt 0:03:18]} 14. Ne3 {[%emt 0:06:33]} Qc8 {[%emt 0:14:36]} 15. Bf3 {[%emt 0:09:16]} Bh3 {[%emt 0:02:50]} 16. Qc2 {[%emt 0:02:29]} g6 {[%emt 0:05:51]} 17. Bd2 {[%emt 0:05:42]} Bd7 {[%emt 0:07:41]} 18. h4 {[%emt 0:01:40]} a5 {[%emt 0:03:40]} 19. h5 {[%emt 0:02:44]} b5 {[%emt 0:01:08]} 20. Rh2 {[%emt 0:01:59]} g5 {[%emt 0:06:28]} 21. h6 {[%emt 0:02:22]} Na6 {[%emt 0:01:40]} 22. Nf5 {[%emt 0:02:36]} Bxf5 {[%emt 0:00:07]} 23. exf5 {[%emt 0:00:01]} Nc5 {[%emt 0:00:44]} 24. f6 {[%emt 0:01:04]} Bxf6 {[%emt 0:00:09]} 25. Rh5 {[%emt 0:00:06]} Qd8 {[%emt 0:00:54]} 26. Qf5 {[%emt 0:01:14]} e4 {[%emt 0:01:32]} 27. Bxg5 {[%emt 0:00:38]} Nd3+ {[%emt 0:02:23]} 28. exd3 {[%emt 0:01:08]} exf3 {[%emt 0:00:08]} 29. Bxf6 {[%emt 0:00:31]} Qe8+ {[%emt 0:00:14]} 30. Qe4 {[%emt 0:00:06]} Qxe4+ {[%emt 0:00:59]} 31. dxe4 {[%emt 0:00:06]} Rfe8 {[%emt 0:00:05]} 32. Rg5+ {[%emt 0:00:41]} Kf8 {[%emt 0:00:06]} 33. Rg4 {[%emt 0:00:07]} b4 {[%emt 0:00:27]} 34. Kf2 {[%emt 0:00:17]} b3 {[%emt 0:00:34]} 35. a3 {[%emt 0:00:36]} 1-0

[Event "10th Uppsala Young Champions 2023"]
[Site "Uppsala"]
[Date "2023.10.30"]
[Round "6.1"]
[White "Omarsson, Adam"]
[Black "Gavrilescu, David"]
[Result "0-1"]
[ECO "D35"]
[WhiteElo "1946"]
[BlackElo "2534"]
[Annotator "RC"]
[PlyCount "74"]
[EventDate "2023.10.27"]
[EventType "swiss"]
[EventCountry "SWE"]
[SourceTitle "playchess.com"]
[Source "ChessBase"]
[SourceQuality "1"]
[TimeControl "5400+30"]

1. d4 {[%emt 0:00:02]} d5 {[%emt 0:00:14]} 2. c4 {[%emt 0:00:09]} e6 {[%emt 0:00:06]} 3. Nc3 {[%emt 0:00:07]} Nf6 {[%emt 0:00:11]} 4. cxd5 {[%emt 0:00:09]} exd5 {[%emt 0:00:06]} 5. Bg5 {[%emt 0:00:12]} Bb4 {[%emt 0:00:06]} 6. e3 {[%emt 0:01:29]} h6 {[%emt 0:00:21]} 7. Bh4 {[%emt 0:01:01]} g5 {[%emt 0:00:08]} 8. Bg3 {[%emt 0:00:04]} h5 {[%emt 0:00:09]} 9. Be5 {[%emt 0:13:14]} Nbd7 {[%emt 0:01:14]} 10. Bd3 {[%emt 0:02:06]} c6 {[%emt 0:05:11]} 11. Qb3 {[%emt 0:06:09]} Qe7 {[%emt 0:00:57]} 12. Bxf6 {[%emt 0:06:12]} Nxf6 {[%emt 0:01:29]} 13. Nge2 {[%emt 0:00:55]} h4 {[%emt 0:02:35]} 14. a3 {[%emt 0:04:54]} Bd6 {[%emt 0:00:26]} 15. Qc2 {[%emt 0:00:34]} h3 {[%emt 0:04:23]} 16. g3 {[%emt 0:00:22]} Ng4 {[%emt 0:02:37]} 17. Bf5 {[%emt 0:08:48]} Be6 {[%emt 0:04:46]} 18. b4 {[%emt 0:07:30]} Qf6 {[%emt 0:03:00]} 19. Bxg4 {[%emt 0:00:29]} Bxg4 {[%emt 0:00:03]} 20. e4 {[%emt 0:00:48]} Qg6 {[%emt 0:06:52]} 21. O-O-O {[%emt 0:00:34]} a5 {[%emt 0:03:58]} 22. exd5 {[%emt 0:03:11]} axb4 {[%emt 0:00:55]} 23. Qe4+ {[%emt 0:02:03]} Qxe4 {[%emt 0:02:05]} 24. Nxe4 {[%emt 0:00:06]} Be7 {[%emt 0:00:10]} 25. d6 {[%emt 0:01:07]} Bf3 {[%emt 0:00:44]} 26. Rhe1 {[%emt 0:02:36]} Bxe4 {[%emt 0:00:14]} 27. dxe7 {[%emt 0:00:05]} Rxa3 {[%emt 0:00:16]} 28. Kb2 {[%emt 0:01:02]} Rh6 {[%emt 0:01:47]} 29. Nc1 {[%emt 0:07:47]} Re6 {[%emt 0:00:38]} 30. Re3 {[%emt 0:09:30]} Rxe3 {[%emt 0:00:10]} 31. fxe3 {[%emt 0:22:45]} Rf6 {[%emt 0:00:06]} 32. Rd2 {[%emt 0:00:00]} Rf1 {[%emt 0:00:06]} 33. Nb3 {[%emt 0:00:00]} b6 {[%emt 0:00:09]} 34. Re2 {[%emt 0:00:00]} Rb1+ {[%emt 0:00:05]} 35. Ka2 {[%emt 0:00:00]} Rg1 {[%emt 0:00:03]} 36. Kb2 {[%emt 0:00:00]} Rg2 {[%emt 0:00:09]} 37. Nc1 {[%emt 0:00:00]} Bd3 {[%emt 0:00:13]} 0-1